[Event "British Rapidplay Championship 2023"]
[Site "Mercure Bradford, Bankfield Hotel"]
[Date "2023.04.15"]
[Round "1.19"]
[White "Lloyd, Stephen M"]
[Black "Quilter, Thomas A"]
[Result "0-1"]
[TimeControl "15 minutes plus 10 seconds per move"]
[WhiteElo "1742"]
[BlackElo "2134"]

1. d4 {[%clk 00:15:17]} {[%emt 00:00:02]} Nf6 {[%clk 00:15:18]} {[%emt
00:00:03]} 2. Nf3 {[%clk 00:15:23]} {[%emt 00:00:05]} d6 {[%clk 00:15:25]}
{[%emt 00:00:03]} 3. Nc3 {[%clk 00:15:27]} {[%emt 00:00:05]} Bf5 {[%clk
00:15:18]} {[%emt 00:00:17]} 4. Bf4 {[%clk 00:14:43]} {[%emt 00:00:55]} Nbd7
{[%clk 00:14:46]} {[%emt 00:00:41]} 5. e3 {[%clk 00:14:45]} {[%emt 00:00:08]}
Nh5 {[%clk 00:13:55]} {[%emt 00:01:01]} 6. Nh4 {[%clk 00:12:51]} {[%emt
00:02:04]} Bg6 {[%clk 00:10:48]} {[%emt 00:03:17]} 7. Bg5 {[%clk 00:10:51]}
{[%emt 00:02:11]} f6 {[%clk 00:09:24]} {[%emt 00:01:33]} 8. g4 {[%clk
00:07:29]} {[%emt 00:03:32]} Bf7 {[%clk 00:07:09]} {[%emt 00:02:25]} 9. gxh5
{[%clk 00:06:46]} {[%emt 00:00:53]} fxg5 {[%clk 00:07:16]} {[%emt 00:00:03]} 10.
Nf5 {[%clk 00:06:27]} {[%emt 00:00:29]} g6 {[%clk 00:06:24]} {[%emt 00:01:03]}
11. Ng3 {[%clk 00:06:21]} {[%emt 00:00:15]} Nf6 {[%clk 00:05:29]} {[%emt
00:01:05]} 12. Nce4 {[%clk 00:05:55]} {[%emt 00:00:36]} Nxe4 {[%clk 00:05:01]}
{[%emt 00:00:38]} 13. Nxe4 {[%clk 00:06:01]} {[%emt 00:00:04]} e6 {[%clk
00:05:04]} {[%emt 00:00:07]} 14. Be2 {[%clk 00:05:45]} {[%emt 00:00:27]} d5
{[%clk 00:04:03]} {[%emt 00:01:11]} 15. Ng3 {[%clk 00:04:53]} {[%emt 00:01:01]}
Qd6 {[%clk 00:04:08]} {[%emt 00:00:06]} 16. c3 {[%clk 00:04:44]} {[%emt
00:00:19]} Bg7 {[%clk 00:03:59]} {[%emt 00:00:18]} 17. e4 {[%clk 00:04:30]}
{[%emt 00:00:24]} dxe4 {[%clk 00:03:59]} {[%emt 00:00:11]} 18. Nxe4 {[%clk
00:04:37]} {[%emt 00:00:02]} Qf4 {[%clk 00:04:03]} {[%emt 00:00:06]} 19. Nc5
{[%clk 00:03:14]} {[%emt 00:01:33]} O-O {[%clk 00:04:04]} {[%emt 00:00:10]} 20.
O-O {[%clk 00:02:38]} {[%emt 00:00:45]} Rad8 {[%clk 00:03:47]} {[%emt
00:00:27]} 21. Nd3 {[%clk 00:02:36]} {[%emt 00:00:12]} Qh4 {[%clk 00:03:45]}
{[%emt 00:00:12]} 22. f4 {[%clk 00:01:54]} {[%emt 00:00:52]} gxh5 {[%clk
00:03:37]} {[%emt 00:00:18]} 23. fxg5 {[%clk 00:01:41]} {[%emt 00:00:24]} Bg6
{[%clk 00:03:29]} {[%emt 00:00:18]} 24. Qd2 {[%clk 00:01:32]} {[%emt 00:00:19]}
Rd5 {[%clk 00:03:15]} {[%emt 00:00:23]} 25. Rxf8+ {[%clk 00:01:07]} {[%emt
00:00:35]} Bxf8 {[%clk 00:03:23]} {[%emt 00:00:02]} 26. Rf1 {[%clk 00:01:12]}
{[%emt 00:00:06]} Bd6 {[%clk 00:03:11]} {[%emt 00:00:22]} 27. Bf3 {[%clk
00:01:14]} {[%emt 00:00:07]} Qxg5+ {[%clk 00:02:59]} {[%emt 00:00:22]} 28. Qxg5
{[%clk 00:01:16]} {[%emt 00:00:08]} Rxg5+ {[%clk 00:03:07]} {[%emt 00:00:03]}
29. Kh1 {[%clk 00:01:15]} {[%emt 00:00:11]} Bxd3 {[%clk 00:03:11]} {[%emt
00:00:06]} 0-1

[Event "British Rapidplay Championship 2023"]
[Site "Mercure Bradford, Bankfield Hotel"]
[Date "2023.04.15"]
[Round "1.20"]
[White "Cook, Phil"]
[Black "Bastow, Mark A"]
[Result "1-0"]
[TimeControl "15 minutes plus 10 seconds per move"]
[WhiteElo "2126"]
[BlackElo "1739"]

1. c4 {[%clk 00:15:14]} {[%emt 00:00:05]} c5 {[%clk 00:14:53]} {[%emt
00:00:28]} 2. Nf3 {[%clk 00:15:19]} {[%emt 00:00:05]} e6 {[%clk 00:14:58]}
{[%emt 00:00:05]} 3. g3 {[%clk 00:15:06]} {[%emt 00:00:23]} d5 {[%clk
00:15:00]} {[%emt 00:00:05]} 4. b3 {[%clk 00:14:52]} {[%emt 00:00:27]} Nc6
{[%clk 00:14:54]} {[%emt 00:00:16]} 5. Bg2 {[%clk 00:14:56]} {[%emt 00:00:05]}
Nf6 {[%clk 00:14:29]} {[%emt 00:00:35]} 6. O-O {[%clk 00:14:57]} {[%emt
00:00:09]} Be7 {[%clk 00:13:15]} {[%emt 00:01:24]} 7. cxd5 {[%clk 00:14:32]}
{[%emt 00:00:36]} exd5 {[%clk 00:13:22]} {[%emt 00:00:03]} 8. d4 {[%clk
00:14:18]} {[%emt 00:00:24]} O-O {[%clk 00:13:25]} {[%emt 00:00:07]} 9. Nc3
{[%clk 00:13:40]} {[%emt 00:00:48]} Bg4 {[%clk 00:12:42]} {[%emt 00:00:52]} 10.
dxc5 {[%clk 00:12:32]} {[%emt 00:01:19]} Bxc5 {[%clk 00:12:22]} {[%emt
00:00:30]} 11. Bg5 {[%clk 00:10:58]} {[%emt 00:01:43]} Be7 {[%clk 00:12:03]}
{[%emt 00:00:30]} 12. Rc1 {[%clk 00:10:14]} {[%emt 00:00:54]} Be6 {[%clk
00:11:19]} {[%emt 00:00:54]} 13. e3 {[%clk 00:07:44]} {[%emt 00:02:39]} Qa5
{[%clk 00:10:39]} {[%emt 00:00:50]} 14. Qe2 {[%clk 00:06:52]} {[%emt 00:01:02]}
Rac8 {[%clk 00:10:19]} {[%emt 00:00:30]} 15. Nb5 {[%clk 00:06:05]} {[%emt
00:00:57]} Rfe8 {[%clk 00:08:49]} {[%emt 00:01:40]} 16. Bxf6 {[%clk 00:05:37]}
{[%emt 00:00:39]} gxf6 {[%clk 00:08:57]} {[%emt 00:00:02]} 17. Nbd4 {[%clk
00:04:32]} {[%emt 00:01:15]} Bg4 {[%clk 00:08:43]} {[%emt 00:00:24]} 18. Qb5
{[%clk 00:03:31]} {[%emt 00:01:11]} Qxb5 {[%clk 00:07:43]} {[%emt 00:01:11]} 19.
Nxb5 {[%clk 00:03:38]} {[%emt 00:00:02]} a6 {[%clk 00:07:30]} {[%emt 00:00:23]}
20. Nbd4 {[%clk 00:03:45]} {[%emt 00:00:03]} Ba3 {[%clk 00:07:29]} {[%emt
00:00:11]} 21. Rc2 {[%clk 00:03:11]} {[%emt 00:00:43]} Bxf3 {[%clk 00:06:58]}
{[%emt 00:00:42]} 22. Nxf3 {[%clk 00:03:06]} {[%emt 00:00:15]} Nb4 {[%clk
00:06:20]} {[%emt 00:00:48]} 23. Rd2 {[%clk 00:02:52]} {[%emt 00:00:24]} Bc1
{[%clk 00:05:56]} {[%emt 00:00:34]} 24. Rdd1 {[%clk 00:02:44]} {[%emt
00:00:18]} Ba3 {[%clk 00:05:44]} {[%emt 00:00:22]} 25. Nd4 {[%clk 00:02:39]}
{[%emt 00:00:15]} Red8 {[%clk 00:04:46]} {[%emt 00:01:08]} 26. Nf5 {[%clk
00:02:38]} {[%emt 00:00:10]} Kf8 {[%clk 00:04:50]} {[%emt 00:00:06]} 27. Rd4
{[%clk 00:02:29]} {[%emt 00:00:19]} Rc2 {[%clk 00:04:21]} {[%emt 00:00:39]} 28.
Rh4 {[%clk 00:02:35]} {[%emt 00:00:05]} Rxa2 {[%clk 00:04:19]} {[%emt
00:00:12]} 29. Rxh7 {[%clk 00:02:42]} {[%emt 00:00:03]} Kg8 {[%clk 00:04:24]}
{[%emt 00:00:05]} 30. Rh4 {[%clk 00:02:41]} {[%emt 00:00:11]} a5 {[%clk
00:03:31]} {[%emt 00:01:03]} 31. Rd1 {[%clk 00:02:46]} {[%emt 00:00:05]} Rc2
{[%clk 00:03:14]} {[%emt 00:00:26]} 32. Rdd4 {[%clk 00:02:51]} {[%emt
00:00:49]} 1-0

[Event "British Rapidplay Championship 2023"]
[Site "Mercure Bradford, Bankfield Hotel"]
[Date "2023.04.15"]
[Round "1.21"]
[White "Riddoch, Alan E"]
[Black "Smith, Andrew P"]
[Result "0-1"]
[TimeControl "15 minutes plus 10 seconds per move"]
[WhiteElo "1735"]
[BlackElo "2125"]

1. e4 {[%clk 00:15:17]} {[%emt 00:00:02]} c5 {[%clk 00:15:12]} {[%emt
00:00:07]} 2. Nf3 {[%clk 00:15:22]} {[%emt 00:00:06]} Nc6 {[%clk 00:15:18]}
{[%emt 00:00:04]} 3. d4 {[%clk 00:15:30]} {[%emt 00:00:02]} cxd4 {[%clk
00:15:22]} {[%emt 00:00:07]} 4. Nxd4 {[%clk 00:15:37]} {[%emt 00:00:02]} Nf6
{[%clk 00:15:25]} {[%emt 00:00:06]} 5. Nc3 {[%clk 00:15:44]} {[%emt 00:00:04]}
e5 {[%clk 00:15:29]} {[%emt 00:00:06]} 6. Ndb5 {[%clk 00:15:38]} {[%emt
00:00:16]} d6 {[%clk 00:15:20]} {[%emt 00:00:19]} 7. Bg5 {[%clk 00:15:34]}
{[%emt 00:00:14]} a6 {[%clk 00:15:24]} {[%emt 00:00:06]} 8. Na3 {[%clk
00:15:39]} {[%emt 00:00:05]} b5 {[%clk 00:15:29]} {[%emt 00:00:05]} 9. Nd5
{[%clk 00:15:44]} {[%emt 00:00:06]} Be7 {[%clk 00:15:32]} {[%emt 00:00:06]} 10.
Bxf6 {[%clk 00:15:11]} {[%emt 00:00:43]} Bxf6 {[%clk 00:15:35]} {[%emt
00:00:07]} 11. c3 {[%clk 00:15:12]} {[%emt 00:00:09]} O-O {[%clk 00:15:37]}
{[%emt 00:00:07]} 12. Bd3 {[%clk 00:15:03]} {[%emt 00:00:20]} Bg5 {[%clk
00:12:35]} {[%emt 00:03:12]} 13. O-O {[%clk 00:15:01]} {[%emt 00:00:12]} Ne7
{[%clk 00:12:14]} {[%emt 00:00:31]} 14. Nxe7+ {[%clk 00:14:39]} {[%emt
00:00:31]} Qxe7 {[%clk 00:12:06]} {[%emt 00:00:19]} 15. Nc2 {[%clk 00:14:39]}
{[%emt 00:00:11]} Bb7 {[%clk 00:09:07]} {[%emt 00:03:09]} 16. Nb4 {[%clk
00:13:37]} {[%emt 00:01:12]} f5 {[%clk 00:08:57]} {[%emt 00:00:19]} 17. exf5
{[%clk 00:13:10]} {[%emt 00:00:37]} e4 {[%clk 00:08:54]} {[%emt 00:00:13]} 18.
Re1 {[%clk 00:12:47]} {[%emt 00:00:33]} Rxf5 {[%clk 00:08:00]} {[%emt
00:01:04]} 19. Qg4 {[%clk 00:12:24]} {[%emt 00:00:32]} Re5 {[%clk 00:07:27]}
{[%emt 00:00:44]} 20. Bc2 {[%clk 00:12:05]} {[%emt 00:00:29]} a5 {[%clk
00:06:25]} {[%emt 00:01:12]} 21. f4 {[%clk 00:09:17]} {[%emt 00:02:58]} exf3
{[%clk 00:06:01]} {[%emt 00:00:35]} 22. Rxe5 {[%clk 00:09:17]} {[%emt
00:00:09]} Qxe5 {[%clk 00:05:01]} {[%emt 00:01:10]} 23. Nd3 {[%clk 00:08:11]}
{[%emt 00:01:16]} Be3+ {[%clk 00:04:17]} {[%emt 00:00:53]} 24. Kf1 {[%clk
00:07:12]} {[%emt 00:01:10]} fxg2+ {[%clk 00:03:53]} {[%emt 00:00:34]} 25. Ke2
{[%clk 00:06:45]} {[%emt 00:00:37]} Qe7 {[%clk 00:03:21]} {[%emt 00:00:40]} 26.
Re1 {[%clk 00:05:59]} {[%emt 00:00:58]} Rf8 {[%clk 00:03:20]} {[%emt 00:00:10]}
27. Qh3 {[%clk 00:04:42]} {[%emt 00:01:28]} Bf3+ {[%clk 00:02:11]} {[%emt
00:01:19]} 28. Qxf3 {[%clk 00:04:34]} {[%emt 00:00:18]} Rxf3 {[%clk 00:02:19]}
{[%emt 00:00:03]} 29. Kxf3 {[%clk 00:04:37]} {[%emt 00:00:06]} g1=Q {[%emt
00:00:15]} 30. Rxg1 {[%clk 00:04:24]} {[%emt 00:00:19]} Bxg1 {[%clk 00:02:22]}
{[%emt 00:00:06]} 0-1

[Event "British Rapidplay Championship 2023"]
[Site "Mercure Bradford, Bankfield Hotel"]
[Date "2023.04.15"]
[Round "1.22"]
[White "Bak, Christopher"]
[Black "Bennett, Eric"]
[Result "1-0"]
[TimeControl "15 minutes plus 10 seconds per move"]
[WhiteElo "2116"]
[BlackElo "1730"]

1. c4 {[%clk 00:15:17]} {[%emt 00:00:02]} e6 {[%clk 00:15:18]} {[%emt
00:00:02]} 2. Nc3 {[%clk 00:15:25]} {[%emt 00:00:02]} d5 {[%clk 00:15:27]}
{[%emt 00:00:01]} 3. d4 {[%emt 00:00:02]} c6 {[%emt 00:00:02]} 4. cxd5 {[%clk
00:15:22]} {[%emt 00:00:09]} exd5 {[%clk 00:15:34]} {[%emt 00:00:02]} 5. Qc2
{[%clk 00:15:26]} {[%emt 00:00:06]} Bd6 {[%clk 00:15:42]} {[%emt 00:00:02]} 6.
e3 {[%clk 00:14:35]} {[%emt 00:01:02]} f5 {[%clk 00:15:48]} {[%emt 00:00:03]} 7.
Bd3 {[%clk 00:14:36]} {[%emt 00:00:09]} g6 {[%clk 00:15:53]} {[%emt 00:00:05]}
8. Nge2 {[%clk 00:14:28]} {[%emt 00:00:19]} Nf6 {[%clk 00:16:01]} {[%emt
00:00:02]} 9. O-O {[%clk 00:14:30]} {[%emt 00:00:06]} O-O {[%clk 00:16:03]}
{[%emt 00:00:08]} 10. Rb1 {[%clk 00:14:31]} {[%emt 00:00:10]} a5 {[%clk
00:16:11]} {[%emt 00:00:02]} 11. Bd2 {[%clk 00:14:32]} {[%emt 00:00:08]} Qe7
{[%clk 00:16:19]} {[%emt 00:00:02]} 12. Rbe1 {[%clk 00:14:08]} {[%emt
00:00:35]} Ne4 {[%clk 00:16:24]} {[%emt 00:00:06]} 13. Nf4 {[%clk 00:13:27]}
{[%emt 00:00:50]} Nxd2 {[%clk 00:16:10]} {[%emt 00:00:25]} 14. Qxd2 {[%clk
00:13:32]} {[%emt 00:00:04]} Bxf4 {[%clk 00:16:16]} {[%emt 00:00:03]} 15. exf4
{[%clk 00:13:40]} {[%emt 00:00:02]} Qg7 {[%clk 00:16:25]} {[%emt 00:00:01]} 16.
Bc2 {[%clk 00:13:24]} {[%emt 00:00:27]} Nd7 {[%clk 00:16:33]} {[%emt 00:00:01]}
17. Re3 {[%clk 00:13:18]} {[%emt 00:00:16]} Nb6 {[%clk 00:16:36]} {[%emt
00:00:07]} 18. b3 {[%clk 00:13:18]} {[%emt 00:00:09]} Bd7 {[%clk 00:16:44]}
{[%emt 00:00:02]} 19. Rfe1 {[%clk 00:13:23]} {[%emt 00:00:05]} Rae8 {[%clk
00:16:49]} {[%emt 00:00:04]} 20. Re5 {[%clk 00:13:09]} {[%emt 00:00:25]} Rxe5
{[%clk 00:16:36]} {[%emt 00:00:24]} 21. Rxe5 {[%clk 00:12:16]} {[%emt
00:01:02]} a4 {[%clk 00:16:36]} {[%emt 00:00:10]} 22. Nxa4 {[%clk 00:11:21]}
{[%emt 00:01:05]} Nxa4 {[%clk 00:16:44]} {[%emt 00:00:02]} 23. bxa4 {[%clk
00:11:30]} {[%emt 00:00:02]} Re8 {[%clk 00:16:37]} {[%emt 00:00:17]} 24. Qe3
{[%clk 00:09:49]} {[%emt 00:01:50]} Rxe5 {[%clk 00:16:44]} {[%emt 00:00:03]} 25.
fxe5 {[%clk 00:09:57]} {[%emt 00:00:02]} Qe7 {[%clk 00:16:51]} {[%emt
00:00:02]} 26. Qb3 {[%clk 00:09:48]} {[%emt 00:00:19]} Be6 {[%clk 00:16:53]}
{[%emt 00:00:09]} 27. g3 {[%clk 00:09:46]} {[%emt 00:00:12]} Qc7 {[%clk
00:16:58]} {[%emt 00:00:05]} 28. Qb4 {[%clk 00:09:40]} {[%emt 00:00:15]} Kf7
{[%clk 00:17:03]} {[%emt 00:00:05]} 29. a5 {[%clk 00:09:16]} {[%emt 00:00:35]}
Qe7 {[%clk 00:17:05]} {[%emt 00:00:07]} 30. Qc3 {[%clk 00:08:54]} {[%emt
00:00:33]} Qc7 {[%clk 00:17:06]} {[%emt 00:00:08]} 31. Ba4 {[%clk 00:08:31]}
{[%emt 00:00:34]} Bd7 {[%clk 00:17:07]} {[%emt 00:00:09]} 32. Qc5 {[%clk
00:08:20]} {[%emt 00:00:21]} Be8 {[%clk 00:17:03]} {[%emt 00:00:13]} 33. Kf1
{[%clk 00:06:59]} {[%emt 00:01:31]} Qe7 {[%clk 00:17:11]} {[%emt 00:00:02]} 34.
Qxe7+ {[%clk 00:07:07]} {[%emt 00:00:02]} Kxe7 {[%clk 00:17:20]} {[%emt
00:00:02]} 35. Ke2 {[%clk 00:07:09]} {[%emt 00:00:08]} Kd7 {[%clk 00:17:15]}
{[%emt 00:00:15]} 36. Kd3 {[%clk 00:07:17]} {[%emt 00:00:02]} Kc7 {[%clk
00:17:23]} {[%emt 00:00:01]} 37. Kc3 {[%clk 00:07:22]} {[%emt 00:00:05]} Bd7
{[%clk 00:17:00]} {[%emt 00:00:34]} 38. Kb4 {[%clk 00:07:20]} {[%emt 00:00:11]}
b6 {[%clk 00:16:46]} {[%emt 00:00:23]} 39. axb6+ {[%clk 00:07:16]} {[%emt
00:00:15]} Kxb6 {[%clk 00:16:54]} {[%emt 00:00:02]} 40. Bc2 {[%clk 00:07:04]}
{[%emt 00:00:21]} Bc8 {[%clk 00:17:01]} {[%emt 00:00:03]} 41. Bd3 {[%clk
00:07:06]} {[%emt 00:00:09]} Be6 {[%clk 00:17:07]} {[%emt 00:00:04]} 42. a4
{[%clk 00:07:14]} {[%emt 00:00:02]} Bc8 {[%clk 00:17:09]} {[%emt 00:00:07]} 43.
a5+ {[%clk 00:07:21]} {[%emt 00:00:03]} Kc7 {[%clk 00:17:17]} {[%emt 00:00:01]}
44. Kc5 {[%clk 00:07:29]} {[%emt 00:00:03]} Be6 {[%clk 00:16:55]} {[%emt
00:00:32]} 45. Bc2 {[%clk 00:07:33]} {[%emt 00:00:06]} Bc8 {[%clk 00:16:48]}
{[%emt 00:00:17]} 46. Ba4 {[%clk 00:07:41]} {[%emt 00:00:03]} Bb7 {[%clk
00:16:57]} 47. f4 {[%clk 00:07:31]} {[%emt 00:00:20]} h6 {[%clk 00:16:40]}
{[%emt 00:00:26]} 48. e6 {[%clk 00:07:07]} {[%emt 00:00:35]} g5 {[%clk
00:16:41]} {[%emt 00:00:09]} 49. a6 {[%clk 00:06:42]} {[%emt 00:00:35]} Bxa6
{[%clk 00:16:49]} {[%emt 00:00:03]} 50. Bxc6 {[%clk 00:06:49]} {[%emt
00:00:02]} Kd8 {[%clk 00:16:47]} {[%emt 00:00:11]} 51. Kd6 {[%clk 00:06:52]}
{[%emt 00:00:14]} 1-0

[Event "British Rapidplay Championship 2023"]
[Site "Mercure Bradford, Bankfield Hotel"]
[Date "2023.04.15"]
[Round "1.23"]
[White "Smith, Adam"]
[Black "Surtees, Mike J"]
[Result "0-1"]
[TimeControl "15 minutes plus 10 seconds per move"]
[WhiteElo "1718"]
[BlackElo "2111"]

1. e4 {[%clk 00:15:18]} c6 {[%clk 00:15:18]} {[%emt 00:00:02]} 2. Nf3 {[%clk
00:15:26]} {[%emt 00:00:02]} d5 {[%clk 00:15:24]} {[%emt 00:00:04]} 3. Nc3
{[%clk 00:15:34]} {[%emt 00:00:03]} a6 {[%clk 00:15:32]} {[%emt 00:00:01]} 4.
a3 {[%clk 00:15:18]} {[%emt 00:00:26]} h6 {[%clk 00:15:17]} {[%emt 00:00:25]} 5.
b4 {[%clk 00:15:18]} {[%emt 00:00:10]} Bg4 {[%clk 00:14:58]} {[%emt 00:00:28]}
6. h3 {[%clk 00:15:06]} {[%emt 00:00:23]} Bxf3 {[%clk 00:14:46]} {[%emt
00:00:21]} 7. Qxf3 {[%clk 00:15:12]} {[%emt 00:00:04]} e6 {[%clk 00:14:54]}
{[%emt 00:00:03]} 8. Bb2 {[%clk 00:13:54]} {[%emt 00:01:28]} Nf6 {[%clk
00:14:55]} {[%emt 00:00:08]} 9. e5 {[%clk 00:13:32]} {[%emt 00:00:32]} Nfd7
{[%clk 00:15:00]} {[%emt 00:00:05]} 10. d4 {[%clk 00:13:34]} {[%emt 00:00:08]}
a5 {[%clk 00:14:43]} {[%emt 00:00:27]} 11. b5 {[%clk 00:13:10]} {[%emt
00:00:34]} a4 {[%clk 00:14:08]} {[%emt 00:00:45]} 12. Bd3 {[%clk 00:12:26]}
{[%emt 00:00:54]} c5 {[%clk 00:14:10]} {[%emt 00:00:08]} 13. Ne2 {[%clk
00:11:39]} {[%emt 00:00:57]} c4 {[%clk 00:12:25]} {[%emt 00:01:55]} 14. Bxc4
{[%clk 00:11:37]} {[%emt 00:00:12]} dxc4 {[%clk 00:12:33]} {[%emt 00:00:02]} 15.
Qxb7 {[%clk 00:11:44]} {[%emt 00:00:03]} Nb6 {[%clk 00:12:25]} {[%emt
00:00:18]} 16. Nf4 {[%clk 00:10:22]} {[%emt 00:01:32]} N8d7 {[%clk 00:10:03]}
{[%emt 00:02:31]} 17. Rd1 {[%clk 00:09:51]} {[%emt 00:00:42]} g5 {[%clk
00:07:45]} {[%emt 00:02:28]} 18. Nh5 {[%clk 00:09:16]} {[%emt 00:00:46]} Nd5
{[%clk 00:07:42]} {[%emt 00:00:12]} 19. O-O {[%clk 00:08:06]} {[%emt 00:01:20]}
Qc8 {[%clk 00:07:22]} {[%emt 00:00:30]} 20. Qxc8+ {[%clk 00:07:09]} {[%emt
00:01:06]} Rxc8 {[%clk 00:07:30]} {[%emt 00:00:03]} 21. Rb1 {[%clk 00:06:50]}
{[%emt 00:00:29]} Rb8 {[%clk 00:07:13]} {[%emt 00:00:26]} 22. Nf6+ {[%clk
00:04:33]} {[%emt 00:02:28]} N7xf6 {[%clk 00:07:12]} {[%emt 00:00:11]} 23. exf6
{[%clk 00:04:39]} {[%emt 00:00:03]} Bd6 {[%clk 00:06:49]} {[%emt 00:00:34]} 24.
Bc1 {[%clk 00:04:25]} {[%emt 00:00:24]} Nc3 {[%clk 00:06:35]} {[%emt 00:00:24]}
25. Rb2 {[%clk 00:04:21]} {[%emt 00:00:15]} Ne2+ {[%clk 00:06:28]} {[%emt
00:00:16]} 26. Kh1 {[%clk 00:04:19]} {[%emt 00:00:12]} Nxc1 {[%clk 00:06:35]}
{[%emt 00:00:03]} 27. Rxc1 {[%clk 00:04:18]} {[%emt 00:00:10]} Bxa3 {[%clk
00:06:42]} {[%emt 00:00:04]} 28. d5 {[%clk 00:04:01]} {[%emt 00:00:27]} Bxb2
{[%clk 00:06:45]} {[%emt 00:00:07]} 29. Rb1 {[%clk 00:04:09]} {[%emt 00:00:02]}
Rxb5 {[%clk 00:06:43]} {[%emt 00:00:12]} 30. dxe6 {[%clk 00:03:50]} {[%emt
00:00:29]} fxe6 {[%clk 00:06:50]} {[%emt 00:00:03]} 31. Re1 {[%clk 00:03:56]}
{[%emt 00:00:03]} Kf7 {[%clk 00:06:56]} {[%emt 00:00:04]} 32. Re4 {[%clk
00:03:44]} {[%emt 00:00:23]} a3 {[%clk 00:06:58]} {[%emt 00:00:08]} 33. Rxc4
{[%clk 00:03:49]} {[%emt 00:00:06]} a2 {[%clk 00:07:03]} {[%emt 00:00:04]} 0-1

[ePGN "0.1;DGT LiveChess/2.2.5"]